fUSD/lending_fUSD_20250628
["ID","MTS","AMOUNT","RATE_DAILY","PERIOD"]
[368272217,1751082681291,-1138.79,0.00046027,60]
[368272218,1751082681301,-305.34311364,0.00046027,60]
[368272219,1751082681310,-490.0,0.00046027,60]
[368272220,1751082681320,-490.0,0.00046027,60]
[368272221,1751082681329,-1019.73,0.00046027,60]
[368272222,1751082681339,-490.0,0.00046027,60]
[368272223,1751082681349,-844.38,0.00046027,60]
[368272224,1751082681359,-490.0,0.00046027,60]
[368272225,1751082681372,-776.98,0.00046027,60]
[368272226,1751082681382,-738.84,0.00046027,60]
[368272227,1751082681392,-479.86868937,0.00046027,60]
[368272228,1751082681401,-490.0,0.00046027,60]
[368272229,1751082681412,-488.06119712,0.00046027,60]
[368272230,1751082681422,-821.18,0.00046027,60]
[368272231,1751082681432,-1590.48,0.00046027,60]
[368272232,1751082681442,-589.0,0.00046027,60]
[368272233,1751082681451,-1128.3,0.00046027,60]
[368272234,1751082681460,-490.0,0.00046027,60]
[368272235,1751082681470,-490.0,0.00046027,60]
[368272236,1751082681479,-917.49,0.00046027,60]
[368272237,1751082681488,-797.25,0.00046027,60]
[368272238,1751082681497,-490.0,0.00046027,60]
[368272239,1751082681507,-863.15,0.00046027,60]
[368272240,1751082681517,-2576.91,0.00046027,60]
[368272241,1751082681526,-490.0,0.00046027,60]
[368272242,1751082681536,-490.0,0.00046027,60]
[368272243,1751082681546,-4726.93,0.00046027,60]
[368272244,1751082681555,-490.0,0.00046027,60]
[368272245,1751082681564,-1437.67,0.00046027,60]
[368272246,1751082681573,-490.0,0.00046027,60]
[368272247,1751082681583,-490.0,0.00046027,60]
[368272248,1751082681592,-490.0,0.00046027,60]
[368272249,1751082681601,-2001.1,0.00046027,14]
[368272250,1751082681610,-87706.84,0.00046027,60]
[368272251,1751082681620,-591.46,0.00046027,60]
[368272252,1751082681629,-531.18910466,0.00046027,60]
[368272253,1751082681638,-856.21,0.00046027,60]
[368272254,1751082681648,-494.74,0.00046027,60]
[368272255,1751082681657,-490.0,0.00046027,60]
[368272256,1751082681667,-1129.72,0.00046027,60]
[368272257,1751082681676,-502.82,0.00046027,60]
[368272258,1751082681686,-2273.84,0.00046027,60]
[368272259,1751082681695,-490.0,0.00046027,60]
[368272260,1751082681704,-1353.33,0.00046027,60]
[368272261,1751082681713,-490.0,0.00046027,60]
[368272262,1751082681722,-490.0,0.00046027,60]
[368272263,1751082681731,-2262.29,0.00046027,60]
[368272264,1751082681740,-490.0,0.00046027,60]
[368272265,1751082681749,-490.0,0.00046027,60]
[368272266,1751082681759,-752.34,0.00046027,60]
[368272267,1751082681768,-490.0,0.00046027,60]
[368272268,1751082681778,-843.07,0.00046027,60]
[368272269,1751082681787,-490.0,0.00046027,60]
[368272270,1751082681796,-560.88,0.00046027,60]
[368272271,1751082681805,-490.0,0.00046027,60]
[368272272,1751082681815,-490.0,0.00046027,60]
[368272273,1751082681825,-869.82,0.00046027,60]
[368272274,1751082681835,-490.0,0.00046027,60]
[368272275,1751082681844,-490.0,0.00046027,60]
[368272276,1751082681854,-490.0,0.00046027,60]
[368272277,1751082681863,-899.36,0.00046027,60]
[368272278,1751082681873,-1722.26,0.00046027,60]
[368272279,1751082681882,-1514.11,0.00046027,60]
[368272280,1751082681891,-1113.17,0.00046027,60]
[368272281,1751082681901,-490.0,0.00046027,60]
[368272282,1751082681910,-515.37,0.00046027,60]
[368272283,1751082681919,-490.0,0.00046027,60]
[368272284,1751082681928,-595.41,0.00046027,60]
[368272285,1751082681938,-1179.46,0.00046027,60]
[368272286,1751082681948,-803.93,0.00046027,60]
[368272287,1751082681956,-739.75,0.00046027,60]
[368272288,1751082681966,-2144.44,0.00046027,60]
[368272289,1751082681976,-949.97,0.00046027,60]
[368272290,1751082681985,-1124.86,0.00046027,60]
[368272291,1751082681996,-407.80861797,0.00046027,60]
[368272292,1751082682005,-496.37,0.00046027,60]
[368272293,1751082682014,-490.0,0.00046027,60]
[368272294,1751082682025,-490.0,0.00046027,60]
[368272295,1751082682034,-3505.37,0.00046027,60]
[368272296,1751082682043,-1091.22,0.00046027,60]
[368272297,1751082682052,-490.0,0.00046027,60]
[368272298,1751082682063,-699.23,0.00046027,60]
[368272299,1751082682072,-1452.75,0.00046027,60]
[368272300,1751082682082,-490.0,0.00046027,2]
[368272301,1751082682092,-686.97,0.00046027,60]
[368272302,1751082682101,-666.92,0.00046027,60]
[368272303,1751082682111,-846.36,0.00046027,60]
[368272304,1751082682120,-155.53,0.00046027,120]
[368272305,1751082682129,-172.58802678,0.00046104,120]
[368272306,1751082682138,-3676.66583952,0.00046143,10]
[368272307,1751082682148,-3676.66583952,0.00046144,10]
[368272308,1751082682157,-200.0,0.00046147,10]
[368272309,1751082682168,-670.30997702,0.00046148,10]
[368272310,1751082682179,-200.0,0.00046153,10]
[368272311,1751082682188,-670.30997702,0.00046158,10]
[368272312,1751082682199,-7052.83375037,0.00046162,10]
[368272313,1751082682209,-670.30997702,0.00046162,10]
[368272314,1751082682219,-150.0,0.00046165,2]
[368272315,1751082682229,-1340.61995405,0.00046169,10]
[368272316,1751082682238,-200.0,0.00046174,10]
[368272317,1751082682249,-3676.66583952,0.00046181,10]
[368272318,1751082682258,-253.10285402,0.00046181,10]
[368272319,1751082682267,-253.10285402,0.00046184,10]
[368272320,1751082682277,-637.703926,0.00046184,10]
[368272321,1751082682287,-200.0,0.00046184,10]
[368272322,1751082682297,-3676.66583952,0.000462,10]
[368272323,1751082682309,-253.10285402,0.00046219,10]
[368272324,1751082682320,-561.42755275,0.00046225,10]
[368272325,1751082682330,-200.0,0.00046242,10]
[368272326,1751082682339,-637.703926,0.00046251,10]
[368272327,1751082682349,-1340.61995405,0.00046262,10]
[368272328,1751082682358,-7052.83375037,0.00046267,10]
[368272329,1751082682370,-172.58802678,0.00046274,120]
[368272330,1751082682380,-7052.83375037,0.00046276,10]
[368272331,1751082682389,-637.703926,0.00046281,10]
[368272332,1751082682399,-200.0,0.00046287,10]
[368272333,1751082682410,-200.0,0.00046289,10]
[368272334,1751082682419,-200.0,0.00046291,10]
[368272335,1751082682428,-500.78,0.00046292,30]
[368272336,1751082682437,-1340.61995405,0.00046295,10]
[368272337,1751082682448,-472.682867,0.00046301,60]
[368272338,1751082682458,-922.75399,0.00046301,60]
[368272339,1751082682468,-840.133317,0.00046301,60]
[368272340,1751082682477,-490.0,0.00046301,60]
[368272341,1751082682487,-490.0,0.00046301,60]
[368272342,1751082682496,-490.0,0.00046301,60]
[368272343,1751082682505,-490.0,0.00046301,60]
[368272344,1751082682515,-490.0,0.00046301,60]
[368272345,1751082682526,-490.0,0.00046301,60]
[368272346,1751082682535,-490.0,0.00046301,60]
[368272347,1751082682545,-490.0,0.00046301,60]
[368272348,1751082682554,-490.0,0.00046301,60]
[368272349,1751082682563,-490.0,0.00046301,60]
[368272350,1751082682572,-490.0,0.00046301,60]
[368272351,1751082682581,-532.68594144,0.00046301,60]
[368272352,1751082682591,-490.0,0.00046301,60]
[368272353,1751082682601,-490.0,0.00046301,60]
[368272354,1751082682610,-517.12436699,0.00046301,60]
[368272355,1751082682619,-490.0,0.00046301,60]
[368272356,1751082682628,-490.0,0.00046301,60]
[368272357,1751082682638,-221.85755372,0.00046301,60]
[368272358,1751082682647,-490.0,0.00046301,60]
[368272359,1751082682656,-490.0,0.00046301,60]
[368272360,1751082682665,-490.0,0.00046301,60]
[368272361,1751082682674,-490.0,0.00046301,60]
[368272362,1751082682683,-273.01298664,0.00046301,60]
[368272363,1751082682693,-490.0,0.00046301,60]
[368272364,1751082682702,-490.0,0.00046301,60]
[368272365,1751082682711,-490.0,0.00046301,60]
[368272366,1751082682720,-490.0,0.00046301,60]
[368272367,1751082682729,-490.0,0.00046301,60]
[368272368,1751082682739,-490.0,0.00046301,60]
[368272369,1751082682749,-490.0,0.00046301,60]
[368272370,1751082682760,-490.0,0.00046301,60]
[368272371,1751082682769,-490.0,0.00046301,60]
[368272372,1751082682779,-490.0,0.00046301,60]
[368272373,1751082682788,-204.69518671,0.00046301,60]
[368272374,1751082682797,-490.0,0.00046301,60]
[368272375,1751082682806,-490.0,0.00046301,60]
[368272376,1751082682815,-592.91,0.00046301,60]
[368272377,1751082682824,-490.0,0.00046301,60]
[368272378,1751082682833,-490.0,0.00046301,60]
[368272379,1751082682843,-490.0,0.00046301,60]
[368272380,1751082682853,-490.0,0.00046301,60]
[368272381,1751082682863,-490.0,0.00046301,60]
[368272382,1751082682872,-490.0,0.00046301,60]
[368272383,1751082682881,-490.0,0.00046301,60]
[368272384,1751082682890,-490.0,0.00046301,60]
[368272385,1751082682899,-499.36,0.00046301,60]
[368272386,1751082682908,-490.0,0.00046301,60]
[368272387,1751082682917,-490.0,0.00046301,60]
[368272388,1751082682927,-490.0,0.00046301,60]
[368272389,1751082682937,-1075.6,0.00046301,60]
[368272390,1751082682948,-304.30712931,0.00046301,60]
[368272391,1751082682957,-490.0,0.00046301,60]
[368272392,1751082682966,-870.44,0.00046301,60]
[368272393,1751082682975,-490.0,0.00046301,60]
[368272394,1751082682985,-490.0,0.00046301,60]
[368272395,1751082682995,-490.0,0.00046301,60]
[368272396,1751082683005,-490.0,0.00046301,60]
[368272397,1751082683015,-490.0,0.00046301,60]
[368272398,1751082683024,-490.0,0.00046301,60]
[368272399,1751082683034,-561.10281181,0.00046301,60]
[368272400,1751082683043,-490.0,0.00046301,60]
[368272401,1751082683053,-726.08,0.00046301,60]
[368272402,1751082683062,-934.18,0.00046301,60]
[368272403,1751082683071,-490.0,0.00046301,60]
[368272404,1751082683081,-690.12,0.00046301,60]
[368272405,1751082683090,-490.0,0.00046301,60]
[368272406,1751082683099,-490.0,0.00046301,60]
[368272407,1751082683108,-490.0,0.00046301,60]
[368272408,1751082683118,-490.0,0.00046301,60]
[368272409,1751082683128,-490.0,0.00046301,60]
[368272410,1751082683138,-709.03,0.00046301,60]
[368272411,1751082683147,-490.0,0.00046301,60]
[368272412,1751082683157,-490.0,0.00046301,60]
[368272413,1751082683167,-490.0,0.00046301,60]
[368272414,1751082683176,-490.0,0.00046301,60]
[368272415,1751082683185,-564.61,0.00046301,60]
[368272416,1751082683195,-545.54,0.00046301,60]
[368272417,1751082683204,-563.33538271,0.00046301,60]
[368272418,1751082683213,-886.57,0.00046301,60]
[368272419,1751082683223,-490.0,0.00046301,60]
[368272420,1751082683232,-490.0,0.00046301,60]
[368272421,1751082683241,-490.0,0.00046301,60]
[368272422,1751082683251,-400.97244288,0.00046301,60]
[368272423,1751082683260,-506.78,0.00046301,60]
[368272424,1751082683269,-490.0,0.00046301,60]
[368272425,1751082683278,-943.17,0.00046301,60]
[368272426,1751082683288,-490.0,0.00046301,60]
[368272427,1751082683297,-490.0,0.00046301,60]
[368272428,1751082683306,-490.0,0.00046301,60]
[368272429,1751082683315,-649.77,0.00046301,60]
[368272430,1751082683324,-544.72789683,0.00046301,60]
[368272431,1751082683333,-794.82,0.00046301,60]
[368272432,1751082683343,-490.0,0.00046301,60]
[368272433,1751082683352,-490.0,0.00046301,60]
[368272434,1751082683364,-490.0,0.00046301,60]
[368272435,1751082683376,-490.0,0.00046301,60]
[368272436,1751082683385,-490.0,0.00046301,60]
[368272437,1751082683394,-532.13325127,0.00046301,60]
[368272438,1751082683403,-490.0,0.00046301,60]
[368272439,1751082683413,-490.0,0.00046301,60]
[368272440,1751082683422,-490.0,0.00046301,60]
[368272441,1751082683432,-490.0,0.00046301,60]
[368272442,1751082683440,-490.0,0.00046301,60]
[368272443,1751082683449,-878.01,0.00046301,60]
[368272444,1751082683459,-735.23,0.00046301,60]
[368272445,1751082683468,-490.0,0.00046301,60]
[368272446,1751082683477,-490.0,0.00046301,60]
[368272447,1751082683486,-589.33,0.00046301,60]
[368272448,1751082683496,-490.0,0.00046301,60]
[368272449,1751082683505,-490.0,0.00046301,60]
[368272450,1751082683514,-490.0,0.00046301,60]
[368272451,1751082683523,-490.0,0.00046301,60]
[368272452,1751082683532,-490.0,0.00046301,60]
[368272453,1751082683542,-607.47,0.00046301,60]
[368272454,1751082683551,-500.0,0.00046301,120]
[368272455,1751082683560,-544.71,0.00046301,60]
[368272456,1751082683570,-510.9,0.00046301,60]
[368272457,1751082683579,-490.0,0.00046301,60]
[368272458,1751082683588,-490.0,0.00046301,60]
[368272459,1751082683597,-490.0,0.00046301,60]
[368272460,1751082683606,-490.0,0.00046301,60]
[368272461,1751082683616,-490.0,0.00046301,60]
[368272462,1751082683626,-490.0,0.00046301,60]
[368272463,1751082683635,-490.0,0.00046301,60]
[368272464,1751082683644,-490.0,0.00046301,60]
[368272465,1751082683654,-490.0,0.00046301,60]
[368272466,1751082683663,-490.0,0.00046301,60]
[368272467,1751082683672,-490.0,0.00046301,60]
[368272468,1751082683682,-490.0,0.00046301,60]
[368272469,1751082683691,-747.38,0.00046301,60]
[368272470,1751082683700,-490.0,0.00046301,60]
[368272471,1751082683710,-724.21,0.00046301,60]
[368272472,1751082683720,-490.0,0.00046301,60]
[368272473,1751082683729,-490.0,0.00046301,60]
[368272474,1751082683739,-662.39,0.00046301,60]
[368272475,1751082683748,-490.0,0.00046301,60]
[368272476,1751082683758,-551.32,0.00046301,60]
[368272477,1751082683768,-490.0,0.00046301,60]
[368272478,1751082683777,-490.0,0.00046301,60]
[368272479,1751082683787,-490.0,0.00046301,60]
[368272480,1751082683797,-490.0,0.00046301,60]
[368272481,1751082683806,-490.0,0.00046301,60]
[368272482,1751082683816,-490.0,0.00046301,60]
[368272483,1751082683825,-530.87,0.00046301,60]
[368272484,1751082683835,-490.0,0.00046301,60]
[368272485,1751082683845,-559.38,0.00046301,60]
[368272486,1751082683854,-490.0,0.00046301,60]
[368272487,1751082683863,-493.98,0.00046301,60]
[368272488,1751082683874,-490.0,0.00046301,60]
[368272489,1751082683883,-490.0,0.00046301,60]
[368272490,1751082683892,-1173.16,0.00046301,60]
[368272491,1751082684065,-490.0,0.00046301,60]
[368272492,1751082684074,-857.13,0.00046301,60]
[368272493,1751082684084,-973.28,0.00046301,60]
[368272494,1751082684094,-490.0,0.00046301,60]
[368272495,1751082684103,-490.0,0.00046301,60]
[368272496,1751082684112,-490.0,0.00046301,60]
[368272497,1751082684121,-490.0,0.00046301,60]
[368272498,1751082684131,-490.0,0.00046301,60]
[368272499,1751082684141,-490.0,0.00046301,60]
[368272500,1751082684150,-592.91,0.00046301,60]
[368272501,1751082684160,-490.0,0.00046301,60]
[368272502,1751082684170,-490.0,0.00046301,60]
[368272503,1751082684180,-490.0,0.00046301,60]
[368272504,1751082684189,-788.82,0.00046301,60]
[368272505,1751082684201,-490.0,0.00046301,60]
[368272506,1751082684210,-490.0,0.00046301,60]
[368272507,1751082684219,-490.0,0.00046301,60]
[368272508,1751082684229,-575.59,0.00046301,60]
[368272509,1751082684238,-490.0,0.00046301,120]
[368272510,1751082684247,-490.0,0.00046301,60]
[368272511,1751082684257,-660.57,0.00046301,60]
[368272512,1751082684266,-490.0,0.00046301,60]
[368272513,1751082684276,-605.43611286,0.00046301,60]
[368272514,1751082684286,-514.96,0.00046301,60]
[368272515,1751082684295,-500.79648589,0.00046301,60]
[368272516,1751082684305,-490.0,0.00046301,60]
[368272517,1751082684315,-490.0,0.00046301,60]
[368272518,1751082684324,-490.0,0.00046301,60]
[368272519,1751082684333,-490.0,0.00046301,60]
[368272520,1751082684342,-490.0,0.00046301,60]
[368272521,1751082684352,-490.0,0.00046301,60]
[368272522,1751082684363,-490.0,0.00046301,60]
[368272523,1751082684374,-179.9552245,0.00046301,60]
[368272524,1751082684384,-490.0,0.00046301,60]
[368272525,1751082684393,-490.0,0.00046301,60]
[368272526,1751082684402,-490.0,0.00046301,60]
[368272527,1751082684414,-490.0,0.00046301,60]
[368272528,1751082684423,-536.48,0.00046301,60]
[368272529,1751082684432,-490.0,0.00046301,60]
[368272530,1751082684443,-490.0,0.00046301,60]
[368272531,1751082684452,-572.46496102,0.00046301,60]
[368272532,1751082684461,-490.0,0.00046301,60]
[368272533,1751082684471,-679.41,0.00046301,60]
[368272534,1751082684480,-490.0,0.00046301,60]
[368272535,1751082684489,-490.0,0.00046301,60]
[368272536,1751082684498,-490.0,0.00046301,60]
[368272537,1751082684507,-517.5,0.00046301,60]
[368272538,1751082684516,-899.76,0.00046301,60]
[368272539,1751082684526,-490.0,0.00046301,60]
[368272540,1751082684535,-490.0,0.00046301,60]
[368272541,1751082684544,-504.27,0.00046301,60]
[368272542,1751082684553,-1167.54,0.00046301,60]
[368272543,1751082684562,-490.0,0.00046301,60]
[368272544,1751082684571,-490.0,0.00046301,60]
[368272545,1751082684580,-490.0,0.00046301,60]
[368272546,1751082684589,-490.0,0.00046301,60]
[368272547,1751082684598,-490.0,0.00046301,60]
[368272548,1751082684608,-490.0,0.00046301,60]
[368272549,1751082684617,-490.0,0.00046301,60]
[368272550,1751082684626,-490.0,0.00046301,60]
[368272551,1751082684635,-490.0,0.00046301,60]
[368272552,1751082684644,-490.0,0.00046301,60]
[368272553,1751082684654,-490.0,0.00046301,60]
[368272554,1751082684664,-490.0,0.00046301,60]
[368272555,1751082684673,-401.42784148,0.00046301,60]
[368272556,1751082684683,-792.14,0.00046301,60]
[368272557,1751082684693,-490.0,0.00046301,60]
[368272558,1751082684702,-490.0,0.00046301,60]
[368272559,1751082684712,-490.0,0.00046301,60]
[368272560,1751082684721,-612.86,0.00046301,60]
[368272561,1751082684730,-490.0,0.00046301,60]
[368272562,1751082684740,-490.0,0.00046301,60]
[368272563,1751082684749,-531.29,0.00046301,60]
[368272564,1751082684759,-490.0,0.00046301,60]
[368272565,1751082684769,-490.0,0.00046301,60]
[368272566,1751082684779,-490.0,0.00046301,60]
[368272567,1751082684790,-365.31967017,0.00046301,60]
[368272568,1751082684800,-490.0,0.00046301,60]
[368272569,1751082684810,-490.0,0.00046301,60]
[368272570,1751082684821,-490.0,0.00046301,60]
[368272571,1751082684832,-490.0,0.00046301,60]
[368272572,1751082684842,-457.27,0.00046301,60]
[368272573,1751082684855,-490.0,0.00046301,60]
[368272574,1751082684866,-542.6,0.00046301,60]
[368272575,1751082684876,-490.0,0.00046301,60]
[368272576,1751082684887,-490.0,0.00046301,60]
[368272577,1751082684897,-254.54,0.00046301,60]
[368272578,1751082684906,-175.00948233,0.00046301,60]
[368272579,1751082684916,-490.0,0.00046301,60]
[368272580,1751082684925,-490.0,0.00046301,60]
[368272581,1751082684934,-490.0,0.00046301,60]
[368272582,1751082684944,-963.8,0.00046301,60]
[368272583,1751082684953,-490.0,0.00046301,60]
[368272584,1751082684963,-490.0,0.00046301,60]
[368272585,1751082684972,-490.0,0.00046301,60]
[368272586,1751082684985,-642.24,0.00046301,60]
[368272587,1751082684995,-490.0,0.00046301,60]
[368272588,1751082685005,-300.0,0.00046301,60]
[368272589,1751082685015,-490.0,0.00046301,60]
[368272590,1751082685025,-490.0,0.00046301,60]
[368272591,1751082685035,-490.0,0.00046301,60]
[368272592,1751082685046,-490.0,0.00046301,60]
[368272593,1751082685056,-595.69,0.00046301,60]
[368272594,1751082685065,-490.0,0.00046301,60]
[368272595,1751082685075,-490.0,0.00046301,60]
[368272596,1751082685085,-1086.71,0.00046301,60]
[368272597,1751082685094,-606.52,0.00046301,60]
[368272598,1751082685104,-490.0,0.00046301,60]
[368272599,1751082685113,-1061.08,0.00046301,60]
[368272600,1751082685124,-695.58,0.00046301,60]
[368272601,1751082685135,-490.0,0.00046301,60]
[368272602,1751082685146,-490.0,0.00046301,60]
[368272603,1751082685156,-490.0,0.00046301,60]
[368272604,1751082685166,-490.0,0.00046301,60]
[368272605,1751082685175,-1239.63,0.00046301,60]
[368272606,1751082685184,-490.0,0.00046301,60]
[368272607,1751082685195,-174.60095743,0.00046301,60]
[368272608,1751082685204,-720.8,0.00046301,60]
[368272609,1751082685214,-490.0,0.00046301,60]
[368272610,1751082685223,-490.0,0.00046301,60]
[368272611,1751082685231,-483.99989019,0.00046301,60]
[368272612,1751082685241,-832.43,0.00046301,60]
[368272613,1751082685250,-663.26,0.00046301,60]
[368272614,1751082685260,-718.76,0.00046301,60]
[368272615,1751082685269,-531.73,0.00046301,60]
[368272616,1751082685279,-490.0,0.00046301,60]
[368272617,1751082685288,-495.8,0.00046301,60]
[368272618,1751082685298,-1624.9,0.00046301,60]
[368272619,1751082685307,-547.95,0.00046301,60]
[368272620,1751082685316,-498.76665675,0.00046301,60]
[368272621,1751082685325,-1486.68,0.00046301,60]
[368272622,1751082685335,-532.38,0.00046301,60]
[368272623,1751082685344,-490.0,0.00046301,60]
[368272624,1751082685353,-490.0,0.00046301,60]
[368272625,1751082685366,-490.0,0.00046301,60]
[368272626,1751082685376,-1416.53,0.00046301,60]
[368272627,1751082685386,-490.0,0.00046301,60]
[368272628,1751082685396,-490.0,0.00046301,60]
[368272629,1751082685408,-490.0,0.00046301,60]
[368272630,1751082685419,-2816.51,0.00046301,60]
[368272631,1751082685429,-741.63,0.00046301,60]
[368272632,1751082685442,-570.57,0.00046301,60]
[368272633,1751082685455,-490.0,0.00046301,60]
[368272634,1751082685472,-1178.77,0.00046301,60]
[368272635,1751082685482,-490.0,0.00046301,60]
[368272636,1751082685492,-752.82,0.00046301,60]
[368272637,1751082685502,-705.56,0.00046301,60]
[368272638,1751082685512,-490.0,0.00046301,60]
[368272639,1751082685522,-490.0,0.00046301,60]
[368272640,1751082685533,-601.38,0.00046301,60]
[368272641,1751082685543,-490.0,0.00046301,60]
[368272642,1751082685554,-1000.0,0.00046301,60]
[368272643,1751082685564,-490.0,0.00046301,60]
[368272644,1751082685575,-490.0,0.00046301,60]
[368272645,1751082685585,-766.0,0.00046301,60]
[368272646,1751082685595,-490.0,0.00046301,60]
[368272647,1751082685605,-1959.61,0.00046301,60]
[368272648,1751082685616,-1475.04,0.00046301,60]
[368272649,1751082685627,-820.32,0.00046301,60]
[368272650,1751082685636,-707.08,0.00046301,60]
[368272651,1751082685646,-490.0,0.00046301,60]
[368272652,1751082685656,-490.0,0.00046301,60]
[368272653,1751082685667,-490.0,0.00046301,60]
[368272654,1751082685676,-619.72,0.00046301,60]
[368272655,1751082685686,-1010.54,0.00046301,60]
[368272656,1751082685696,-490.0,0.00046301,60]
[368272657,1751082685707,-1073.99,0.00046301,60]
[368272658,1751082685716,-490.0,0.00046301,60]
[368272659,1751082685728,-1067.18,0.00046301,60]
[368272660,1751082685738,-1010.91,0.00046301,60]
[368272661,1751082685749,-1570.28,0.00046301,60]
[368272662,1751082685759,-548.91,0.00046301,60]
[368272663,1751082685769,-490.0,0.00046301,60]
[368272664,1751082685779,-750.13,0.00046301,60]
[368272665,1751082685790,-490.0,0.00046301,60]
[368272666,1751082685800,-490.0,0.00046301,60]
[368272667,1751082685811,-490.0,0.00046301,60]
[368272668,1751082685822,-821.23,0.00046301,60]
[368272669,1751082685832,-1542.99,0.00046301,60]
[368272670,1751082685843,-1177.3,0.00046301,60]
[368272671,1751082685853,-1179.63,0.00046301,60]
[368272672,1751082685863,-529.21,0.00046301,60]
[368272673,1751082685872,-610.66,0.00046301,60]
[368272674,1751082685883,-741.12,0.00046301,60]
[368272675,1751082685894,-1631.32,0.00046301,60]
[368272676,1751082685904,-1097.42,0.00046301,60]
[368272677,1751082685915,-548.15,0.00046301,60]
[368272678,1751082685925,-490.0,0.00046301,60]
[368272679,1751082685936,-490.0,0.00046301,60]
[368272680,1751082685946,-2810.62,0.00046301,60]
[368272681,1751082685956,-562.68,0.00046301,60]
[368272682,1751082685967,-813.63,0.00046301,60]
[368272683,1751082685977,-206.25999991,0.00046301,60]
[368272684,1751082685987,-4339.41,0.00046301,60]
[368272685,1751082685997,-490.0,0.00046301,60]
[368272686,1751082686009,-490.0,0.00046301,60]
[368272687,1751082686020,-810.18,0.00046301,60]
[368272688,1751082686031,-1527.73,0.00046301,60]
[368272689,1751082686042,-1543.42,0.00046301,60]
[368272690,1751082686052,-3523.62,0.00046301,60]
[368272691,1751082686063,-490.0,0.00046301,60]
[368272692,1751082686073,-962.8,0.00046301,60]
[368272693,1751082686084,-490.0,0.00046301,60]
[368272694,1751082686094,-1516.86,0.00046301,60]
[368272695,1751082686105,-490.0,0.00046301,60]
[368272696,1751082686115,-490.0,0.00046301,60]
[368272697,1751082686127,-490.0,0.00046301,60]
[368272698,1751082686138,-497.16,0.00046301,60]
[368272699,1751082686149,-616.8,0.00046301,60]
[368272700,1751082686160,-490.0,0.00046301,60]
[368272701,1751082686171,-490.0,0.00046301,60]
[368272702,1751082686181,-1169.16,0.00046301,60]
[368272703,1751082686191,-810.46,0.00046301,60]
[368272704,1751082686201,-862.6,0.00046301,60]
[368272705,1751082686211,-497.3,0.00046301,60]
[368272706,1751082686221,-1767.07,0.00046301,60]
[368272707,1751082686231,-490.0,0.00046301,60]
[368272708,1751082686242,-1075.14,0.00046301,60]
[368272709,1751082686252,-1034.52,0.00046301,60]
[368272710,1751082686262,-558.28,0.00046301,60]
[368272711,1751082686272,-641.55,0.00046301,60]
[368272712,1751082686283,-490.0,0.00046301,60]
[368272713,1751082686292,-999.45,0.00046301,60]
[368272714,1751082686303,-490.0,0.00046301,60]
[368272715,1751082686312,-803.37,0.00046301,60]
[368272716,1751082686322,-490.0,0.00046301,60]